fUST/lending_fUST_20240806
["ID","MTS","AMOUNT","RATE_DAILY","PERIOD"]
[334280215,1722887451958,-500.0,0.00041095,31]
[334280216,1722887451968,-500.0,0.00041095,31]
[334280217,1722887451977,-500.0,0.00041095,31]
[334280218,1722887451987,-500.0,0.00041095,31]
[334280219,1722887451996,-1732.225138,0.00041095,14]
[334280220,1722887452006,-1732.225138,0.00041095,14]
[334280221,1722887452015,-1732.225138,0.00041095,14]
[334280222,1722887452025,-500.0,0.00041095,31]
[334280223,1722887452034,-1732.225138,0.00041095,14]
[334280224,1722887452044,-1732.225138,0.00041095,14]
[334280225,1722887452053,-1732.225138,0.00041095,14]
[334280226,1722887452063,-502.88295275,0.00041095,31]
[334280227,1722887452072,-500.0,0.00041095,31]
[334280228,1722887452081,-500.0,0.00041095,31]
[334280229,1722887452090,-503.4325015,0.00041095,31]
[334280230,1722887452099,-500.0,0.00041095,31]
[334280231,1722887452108,-500.0,0.00041095,31]
[334280232,1722887452117,-500.0,0.00041095,31]
[334280233,1722887452127,-500.0,0.00041095,31]
[334280234,1722887452136,-500.0,0.00041095,31]
[334280235,1722887452146,-500.0,0.00041095,31]
[334280236,1722887452155,-500.0,0.00041095,31]
[334280237,1722887452164,-500.0,0.00041095,31]
[334280238,1722887452173,-500.0,0.00041095,31]
[334280239,1722887452182,-500.0,0.00041095,31]
[334280240,1722887452192,-2000.0,0.00041095,31]
[334280241,1722887452209,-200.0,0.00041095,7]
[334280242,1722887452220,-150.0,0.00041095,31]
[334280243,1722887452229,-500.0,0.00041095,31]
[334280244,1722887452238,-500.0,0.00041095,31]
[334280245,1722887452247,-500.0,0.00041095,31]
[334280246,1722887452257,-500.0,0.00041095,31]
[334280247,1722887452266,-500.0,0.00041095,31]
[334280248,1722887452283,-500.0,0.00041095,31]
[334280249,1722887452300,-444.32021219,0.00041095,14]
[334280250,1722887452907,-323.81791502,0.00041095,14]
[334280251,1722887453154,-10.54784079,0.00041095,14]
[334280252,1722887453167,-778.685968,0.00041095,14]
[334280253,1722887453177,-778.685968,0.00041095,14]
[334280254,1722887453186,-500.0,0.00041095,31]
[334280255,1722887453196,-500.0,0.00041095,31]
[334280256,1722887453210,-500.0,0.00041095,31]
[334280257,1722887453219,-500.0,0.00041095,31]
[334280258,1722887453228,-778.685968,0.00041095,14]
[334280259,1722887453238,-778.685968,0.00041095,14]
[334280260,1722887453247,-778.685968,0.00041095,14]
[334280261,1722887453256,-500.0,0.00041095,31]
[334280262,1722887453265,-500.0,0.00041095,31]
[334280263,1722887453274,-500.0,0.00041095,31]
[334280264,1722887453283,-500.0,0.00041095,31]
[334280265,1722887453292,-14018.43,0.00041095,31]
[334280266,1722887453302,-500.0,0.00041095,31]
[334280267,1722887453311,-500.0,0.00041095,31]
[334280268,1722887453320,-500.0,0.00041095,31]
[334280269,1722887453330,-500.0,0.00041095,31]
[334280270,1722887453339,-500.0,0.00041095,31]
[334280271,1722887453349,-534.20292297,0.00041095,31]
[334280272,1722887453358,-500.0,0.00041095,31]
[334280273,1722887453368,-500.0,0.00041095,31]
[334280274,1722887453378,-151.0,0.00041095,14]
[334280275,1722887453388,-500.0,0.00041095,31]
[334280276,1722887453398,-151.0,0.00041095,14]
[334280277,1722887453407,-151.0,0.00041095,14]
[334280278,1722887453416,-886.294424,0.00041095,14]
[334280279,1722887453426,-886.294424,0.00041095,14]
[334280280,1722887453436,-886.294424,0.00041095,14]
[334280281,1722887453446,-500.0,0.00041095,31]
[334280282,1722887453458,-500.0,0.00041095,31]
[334280283,1722887453467,-500.0,0.00041095,31]
[334280284,1722887453476,-886.294424,0.00041095,14]
[334280285,1722887453485,-886.294424,0.00041095,14]
[334280286,1722887453497,-573.66420502,0.00041095,31]
[334280287,1722887453508,-886.294424,0.00041095,14]
[334280288,1722887453518,-500.0,0.00041095,31]
[334280289,1722887453528,-1000.0,0.00041095,90]
[334280290,1722887453537,-2229.716735,0.00041095,14]
[334280291,1722887453547,-706.657169,0.00041095,14]
[334280292,1722887453556,-706.657169,0.00041095,14]
[334280293,1722887453565,-2229.716735,0.00041095,14]
[334280294,1722887453575,-706.657169,0.00041095,14]
[334280295,1722887453585,-1580.89588154,0.00041095,14]
[334280296,1722887453631,-648.82085346,0.00041095,14]
[334280297,1722887453642,-500.0,0.00041095,31]
[334280298,1722887453652,-500.0,0.00041095,31]
[334280299,1722887453662,-500.0,0.00041095,31]
[334280300,1722887453672,-706.657169,0.00041095,14]
[334280301,1722887453681,-706.657169,0.00041095,14]
[334280302,1722887453692,-500.0,0.00041095,31]
[334280303,1722887453706,-706.657169,0.00041095,14]
[334280304,1722887453716,-2229.716735,0.00041095,14]
[334280305,1722887453725,-2229.716735,0.00041095,14]
[334280306,1722887453736,-2229.716735,0.00041095,14]
[334280307,1722887453745,-500.0,0.00041095,31]
[334280308,1722887453755,-500.0,0.00041095,31]
[334280309,1722887453764,-500.0,0.00041095,31]
[334280310,1722887453774,-500.0,0.00041095,31]
[334280311,1722887453783,-500.0,0.00041095,31]
[334280312,1722887453793,-500.0,0.00041095,31]
[334280313,1722887453802,-500.0,0.00041095,31]
[334280314,1722887453812,-151.0,0.00041095,14]
[334280315,1722887453822,-221.373645,0.00041095,14]
[334280316,1722887453831,-500.0,0.00041095,31]
[334280317,1722887453841,-500.0,0.00041095,31]
[334280318,1722887453851,-500.0,0.00041095,31]
[334280319,1722887453860,-500.0,0.00041095,31]
[334280320,1722887453870,-500.0,0.00041095,31]
[334280321,1722887453880,-500.0,0.00041095,31]
[334280322,1722887453890,-484.52322961,0.00041095,31]
[334280323,1722887453899,-500.0,0.00041095,31]
[334280324,1722887453909,-545.56245258,0.00041095,31]
[334280325,1722887453918,-500.0,0.00041095,31]
[334280326,1722887453928,-500.0,0.00041095,31]
[334280327,1722887453937,-500.0,0.00041095,31]
[334280328,1722887453948,-369.782741,0.00041095,14]
[334280329,1722887453957,-369.782741,0.00041095,14]
[334280330,1722887453966,-369.782741,0.00041095,14]
[334280331,1722887453976,-500.0,0.00041095,31]
[334280332,1722887453985,-369.782741,0.00041095,14]
[334280333,1722887453995,-500.0,0.00041095,31]
[334280334,1722887454004,-369.782741,0.00041095,14]
[334280335,1722887454014,-369.782741,0.00041095,14]
[334280336,1722887454024,-500.0,0.00041095,31]
[334280337,1722887454033,-500.0,0.00041095,31]
[334280338,1722887454043,-500.0,0.00041095,31]
[334280339,1722887454052,-500.0,0.00041095,31]
[334280340,1722887454062,-500.0,0.00041095,31]
[334280341,1722887454072,-500.0,0.00041095,31]
[334280342,1722887454081,-500.0,0.00041095,31]
[334280343,1722887454091,-500.0,0.00041095,31]
[334280344,1722887454100,-500.0,0.00041095,31]
[334280345,1722887454110,-500.0,0.00041095,31]
[334280346,1722887454120,-500.0,0.00041095,31]
[334280347,1722887454129,-500.0,0.00041095,31]
[334280348,1722887454138,-505.10663485,0.00041095,31]
[334280349,1722887454147,-1077.934607,0.00041095,14]
[334280350,1722887454156,-500.0,0.00041095,31]
[334280351,1722887454166,-1077.934607,0.00041095,14]
[334280352,1722887454175,-1077.934607,0.00041095,14]
[334280353,1722887454185,-500.0,0.00041095,31]
[334280354,1722887454194,-500.0,0.00041095,31]
[334280355,1722887454208,-500.0,0.00041095,31]
[334280356,1722887454218,-1077.934607,0.00041095,14]
[334280357,1722887454227,-500.0,0.00041095,31]
[334280358,1722887454235,-1077.934607,0.00041095,14]
[334280359,1722887454244,-500.0,0.00041095,31]
[334280360,1722887454253,-1077.934607,0.00041095,14]
[334280361,1722887454263,-500.0,0.00041095,31]
[334280362,1722887454272,-500.0,0.00041095,31]
[334280363,1722887454281,-449.66155475,0.00041095,31]
[334280364,1722887454290,-500.0,0.00041095,31]
[334280365,1722887454299,-1665.212624,0.00041095,14]
[334280366,1722887454309,-500.0,0.00041095,31]
[334280367,1722887454318,-500.0,0.00041095,31]
[334280368,1722887454327,-1665.212624,0.00041095,14]
[334280369,1722887454336,-1665.212624,0.00041095,14]
[334280370,1722887454346,-2606.36,0.00041095,60]
[334280371,1722887454355,-2606.36,0.00041095,60]
[334280372,1722887454364,-2606.36,0.00041095,60]
[334280373,1722887454373,-2606.36,0.00041095,60]
[334280374,1722887454383,-2606.36,0.00041095,60]
[334280375,1722887454392,-2606.36,0.00041095,60]
[334280376,1722887454401,-500.0,0.00041095,31]
[334280377,1722887454410,-2606.36,0.00041095,60]
[334280378,1722887454420,-2606.36,0.00041095,60]
[334280379,1722887454429,-500.0,0.00041095,31]
[334280380,1722887454439,-1665.212624,0.00041095,14]
[334280381,1722887454451,-1222.52319864,0.00041095,60]
[334280382,1722887454464,-1383.83680136,0.00041095,60]
[334280383,1722887454473,-501.28803573,0.00041095,2]
[334280384,1722887454483,-1665.212624,0.00041095,14]
[334280385,1722887454492,-2606.36,0.00041095,60]
[334280386,1722887454502,-2606.36,0.00041095,60]
[334280387,1722887454511,-1665.212624,0.00041095,14]
[334280388,1722887454521,-2606.36,0.00041095,60]
[334280389,1722887454531,-2606.36,0.00041095,60]
[334280390,1722887454540,-1546.08961,0.00041095,14]
[334280391,1722887454550,-2606.36,0.00041095,60]
[334280392,1722887454560,-1546.08961,0.00041095,14]
[334280393,1722887454569,-2606.36,0.00041095,60]
[334280394,1722887454579,-2606.36,0.00041095,60]
[334280395,1722887454588,-1546.08961,0.00041095,14]
[334280396,1722887454598,-2606.36,0.00041095,60]
[334280397,1722887454608,-2606.36,0.00041095,60]
[334280398,1722887454619,-500.0,0.00041095,7]
[334280399,1722887454629,-500.0,0.00041095,31]
[334280400,1722887454641,-2606.36,0.00041095,60]
[334280401,1722887454650,-2606.36,0.00041095,60]
[334280402,1722887454661,-2606.36,0.00041095,60]
[334280403,1722887454670,-2606.36,0.00041095,60]
[334280404,1722887454679,-2606.36,0.00041095,60]
[334280405,1722887454688,-2606.52713635,0.00041095,60]
[334280406,1722887454697,-1546.08961,0.00041095,14]
[334280407,1722887454711,-500.0,0.00041095,31]
[334280408,1722887454721,-1546.08961,0.00041095,14]
[334280409,1722887454729,-1546.08961,0.00041095,14]
[334280410,1722887454739,-500.0,0.00041095,31]
[334280411,1722887454748,-500.0,0.00041095,31]
[334280412,1722887454757,-500.0,0.00041095,31]
[334280413,1722887454766,-500.0,0.00041095,31]
[334280414,1722887454776,-500.0,0.00041095,31]
[334280415,1722887454785,-151.0,0.00041095,14]
[334280416,1722887454795,-151.0,0.00041095,14]
[334280417,1722887454804,-151.0,0.00041095,14]
[334280418,1722887454814,-500.0,0.00041095,31]
[334280419,1722887454823,-500.0,0.00041095,31]
[334280420,1722887454832,-500.0,0.00041095,31]
[334280421,1722887454843,-500.0,0.00041095,31]
[334280422,1722887454852,-500.0,0.00041095,31]
[334280423,1722887454861,-500.0,0.00041095,31]
[334280424,1722887454871,-500.0,0.00041095,31]
[334280425,1722887454880,-1516.98,0.00041095,31]
[334280426,1722887454889,-500.0,0.00041095,31]
[334280427,1722887454899,-500.0,0.00041095,31]
[334280428,1722887454908,-151.0,0.00041095,14]
[334280429,1722887454918,-500.0,0.00041095,31]
[334280430,1722887454927,-500.0,0.00041095,31]
[334280431,1722887454937,-500.0,0.00041095,31]
[334280432,1722887454946,-500.0,0.00041095,31]
[334280433,1722887454958,-500.0,0.00041095,31]
[334280434,1722887454968,-500.0,0.00041095,31]
[334280435,1722887454976,-500.0,0.00041095,31]
[334280436,1722887454986,-500.0,0.00041095,31]
[334280437,1722887454995,-500.0,0.00041095,31]
[334280438,1722887455005,-500.0,0.00041095,31]
[334280439,1722887455014,-500.0,0.00041095,31]
[334280440,1722887455024,-348.71512438,0.00041095,31]
[334280441,1722887455033,-500.0,0.00041095,31]
[334280442,1722887455042,-548.07530637,0.00041095,31]
[334280443,1722887455052,-500.0,0.00041095,31]
[334280444,1722887455061,-500.0,0.00041095,31]
[334280445,1722887455071,-500.0,0.00041095,31]
[334280446,1722887455080,-500.0,0.00041095,31]
[334280447,1722887455089,-500.0,0.00041095,31]
[334280448,1722887455099,-500.0,0.00041095,31]
[334280449,1722887455108,-151.0,0.00041095,14]
[334280450,1722887455118,-151.0,0.00041095,14]
[334280451,1722887455127,-500.0,0.00041095,31]
[334280452,1722887455136,-151.0,0.00041095,14]
[334280453,1722887455145,-500.0,0.00041095,31]
[334280454,1722887455154,-512.83269244,0.00041095,31]
[334280455,1722887455163,-500.0,0.00041095,31]
[334280456,1722887455172,-500.0,0.00041095,31]
[334280457,1722887455182,-500.0,0.00041095,31]
[334280458,1722887455192,-522.08976972,0.00041095,31]
[334280459,1722887455204,-500.0,0.00041095,31]
[334280460,1722887455213,-500.0,0.00041095,31]
[334280461,1722887455223,-500.0,0.00041095,38]
[334280462,1722887455233,-500.0,0.00041095,31]
[334280463,1722887455242,-500.0,0.00041095,31]
[334280464,1722887455251,-500.0,0.00041095,31]
[334280465,1722887455260,-500.0,0.00041095,31]
[334280466,1722887455270,-151.0,0.00041095,14]
[334280467,1722887455280,-151.0,0.00041095,14]
[334280468,1722887455289,-151.0,0.00041095,14]
[334280469,1722887455299,-151.0,0.00041095,14]
[334280470,1722887455309,-151.0,0.00041095,14]
[334280471,1722887455318,-151.0,0.00041095,14]
[334280472,1722887455327,-2000.0,0.00041095,31]
[334280473,1722887455336,-500.0,0.00041095,31]
[334280474,1722887455345,-500.0,0.00041095,31]
[334280475,1722887455355,-500.0,0.00041095,31]
[334280476,1722887455364,-500.0,0.00041095,31]
[334280477,1722887455373,-500.0,0.00041095,31]
[334280478,1722887455382,-150.112233,0.000411,10]
[334280479,1722887455391,-151.0,0.00041133,14]
[334280480,1722887455401,-151.0,0.00041133,14]
[334280481,1722887455410,-151.0,0.00041133,14]
[334280482,1722887455419,-151.0,0.00041133,14]
[334280483,1722887455428,-151.0,0.00041133,14]
[334280484,1722887455437,-151.0,0.00041133,14]
[334280485,1722887455446,-151.0,0.00041133,14]
[334280486,1722887455460,-151.252449,0.00041133,14]
[334280487,1722887455476,-151.0,0.00041133,14]
[334280488,1722887455485,-151.0,0.00041133,14]
[334280489,1722887455494,-152.211436,0.00041133,14]
[334280490,1722887455503,-394.431271,0.00041133,14]
[334280491,1722887455512,-394.431271,0.00041133,14]
[334280492,1722887455521,-151.0,0.00041133,14]
[334280493,1722887455530,-151.0,0.00041133,14]
[334280494,1722887455539,-151.0,0.00041133,14]
[334280495,1722887455548,-151.0,0.00041133,14]
[334280496,1722887455558,-302.702013,0.00041133,14]
[334280497,1722887455568,-302.702013,0.00041133,14]
[334280498,1722887455577,-151.0,0.00041133,14]
[334280499,1722887455587,-778.685968,0.00041133,14]
[334280500,1722887455596,-778.685968,0.00041133,14]
[334280501,1722887455605,-151.0,0.00041133,14]
[334280502,1722887455615,-886.294424,0.00041133,14]
[334280503,1722887455624,-886.294424,0.00041133,14]
[334280504,1722887455636,-706.657169,0.00041133,14]
[334280505,1722887455646,-2229.716735,0.00041133,14]
[334280506,1722887455656,-706.657169,0.00041133,14]
[334280507,1722887455666,-2229.716735,0.00041133,14]
[334280508,1722887455675,-369.782741,0.00041133,14]
[334280509,1722887455684,-369.782741,0.00041133,14]
[334280510,1722887455697,-1077.934607,0.00041133,14]
[334280511,1722887455714,-1077.934607,0.00041133,14]
[334280512,1722887455723,-1665.212624,0.00041133,14]
[334280513,1722887455734,-1665.212624,0.00041133,14]
[334280514,1722887455743,-1546.08961,0.00041133,14]
[334280515,1722887455752,-1546.08961,0.00041133,14]
[334280516,1722887455762,-151.0,0.00041133,14]
[334280517,1722887455771,-151.0,0.00041133,14]
[334280518,1722887455781,-151.0,0.00041133,14]
[334280519,1722887455790,-151.0,0.00041133,14]
[334280520,1722887455799,-63201.53015079,0.00041133,60]
[334280521,1722887455876,-500.0,0.00041095,31]
[334280522,1722887455885,-500.0,0.00041095,31]
[334280523,1722887455895,-500.0,0.00041095,31]
[334280524,1722887455904,-2239.89109522,0.00041133,60]
[334280525,1722887455963,-142.88662805,0.00041133,60]
[334280526,1722887456101,1483.05025513,0.0002,10]
[334280527,1722887456122,3516.94974487,0.0002,10]
[334280528,1722887461199,163.92393267,0.00025,15]
[334280529,1722887462410,5000.0,0.0002,10]
[334280530,1722887463233,3608.33001858,0.00030303,2]
[334280531,1722887463609,172.13713327,0.00025,2]
[334280532,1722887464843,11466.23735052,0.00030303,4]
[334280533,1722887465369,2107.67550275,0.00030303,4]
[334280534,1722887470273,4299.52156157,0.0002,10]
[334280535,1722887473178,838.91779201,0.00025,2]
[334280536,1722887476382,1492.75012023,0.00030303,4]
[334280537,1722887477867,206.48402325,0.00030303,4]
[334280538,1722887479040,2255.01797592,0.00030303,4]
[334280539,1722887481788,158.91,0.000266,31]
[334280540,1722887481857,158.91,0.000266,31]
[334280541,1722887481910,158.91,0.000305,31]
[334280542,1722887481975,158.91,0.000305,31]
[334280543,1722887482032,158.91,0.000344,31]
[334280544,1722887482102,158.91,0.000344,31]
[334280545,1722887486021,2848.0272935,0.00030303,120]
[334280546,1722887489398,1278.81838434,0.00030303,4]
[334280547,1722887491080,1108.72341291,0.00030303,4]
[334280553,1722888352153,-175.21333,0.00014247,2]
[334280554,1722888352175,-167.316904,0.00014247,2]
[334280555,1722888352203,-138.26341672,0.00019317,2]
[334280556,1722888434104,-210.68435147,0.00019317,2]
[334280557,1722888434126,-81.04644673,0.00019317,2]
[334280558,1722888436105,-249.94648886,0.00019317,2]
[334280559,1722888440269,-234.32078322,0.00019317,2]
[334280560,1722888442152,-2916.80763225,0.00019317,2]
[334280561,1722888447099,-1974.41992498,0.00019317,2]
[334280562,1722888452099,-9652.31479329,0.00019317,2]
[334280563,1722888550265,-175.21333,0.00014247,2]
[334280564,1722888550286,-9642.56191171,0.00019256,2]
[334280565,1722888550306,-8707.88961849,0.00019256,2]
[334280566,1722888550329,-304.13145597,0.00019317,2]
[334280567,1722888550350,-9652.88051395,0.00019317,2]
[334280568,1722888550371,-366.34372886,0.0001945,2]
[334280569,1722888550392,-500.0,0.0001945,2]
[334280570,1722888550412,-500.0,0.0001945,2]
[334280571,1722888550432,-500.0,0.0001945,2]
[334280572,1722888550453,-500.0,0.0001945,2]
[334280573,1722888550473,-423.31755793,0.0001945,2]
[334280574,1722888550496,-500.0,0.0001945,2]
[334280575,1722888550516,-500.0,0.0001945,2]
[334280576,1722888550535,-505.80860778,0.0001945,2]
[334280577,1722888550557,-500.0,0.0001945,2]
[334280578,1722888550595,-500.0,0.0001945,2]
[334280579,1722888550619,-500.0,0.0001945,2]
[334280580,1722888550640,-500.0,0.0001945,2]
[334280581,1722888550662,-432.07896432,0.0001945,2]
[334280582,1722888550684,-500.0,0.0001945,2]
[334280583,1722888550705,-500.0,0.0001945,2]
[334280584,1722888550727,-637.78528904,0.0001945,2]
[334280585,1722888550749,-189.16420561,0.0001945,2]
[334280586,1722888550771,-547.76871052,0.00019999,2]
[334280587,1722888550792,-151.27311453,0.0002,2]
[334280588,1722888550814,-250.0,0.0002018,2]
[334280589,1722888550838,-216.90165335,0.0002028,2]
[334280590,1722888550859,-169.221072,0.00020294,2]
[334280591,1722888550880,-2722.4334014,0.00020433,2]
[334280592,1722888550901,-13000.0,0.00020998,2]
[334280593,1722888550922,-193.81001865,0.00020999,2]
[334280594,1722888550943,-789.38861408,0.00023414,2]
[334280595,1722888550964,-200.0,0.00024658,15]
[334280596,1722888550987,-500.0,0.00025,30]
[334280597,1722888551008,-500.0,0.00025,30]
[334280598,1722888551028,-500.0,0.00025,30]
[334280599,1722888551049,-500.0,0.00025,30]
[334280600,1722888551076,-422.0,0.00025,30]
[334280601,1722888551098,-157.18,0.000266,31]
[334280602,1722888551120,-157.18,0.000266,31]
[334280603,1722888551140,-160.54991199,0.00026604,2]
[334280604,1722888551161,-11570.11,0.00027869,3]
[334280605,1722888551184,-500.0,0.00027878,2]
[334280606,1722888551205,-362.24932852,0.00027878,2]
[334280607,1722888551228,-137191.0015607,0.00027879,30]
[334280608,1722888551367,-176.8550048,0.00019167,2]
[334280609,1722888552197,-599.64335786,0.00019167,2]
[334280610,1722888564105,-2311.14035967,0.00019167,2]
[334280611,1722888564126,-6730.05105398,0.00019256,2]
[334280612,1722888564147,-414.88650261,0.00019999,2]
[334280613,1722888564169,-35893.8648393,0.00027879,30]
[334280614,1722888564189,-151.0,0.0003,120]
[334280615,1722888564210,-151.0,0.0003,120]
[334280616,1722888564231,-3343.85781741,0.00030303,4]
[334280617,1722888565366,-2273.63983533,0.00030303,4]
[334280618,1722888565388,-284.83809153,0.00030303,3]
[334280619,1722888565408,-4089.79023473,0.00030303,7]
[334280620,1722888569144,-5277.77580984,0.00030303,7]
[334280621,1722888569168,-157.18,0.000305,31]
[334280622,1722888569189,-157.18,0.000305,31]
[334280623,1722888569209,-233.984872,0.00031507,120]
[334280624,1722888569229,-151.0,0.00033534,120]
[334280625,1722888569251,-157.18,0.000344,31]
[334280626,1722888569273,-157.18,0.000344,31]
[334280627,1722888569305,-648.72314506,0.000354,2]
[334280628,1722888569325,-10000.0,0.000355,30]
[334280629,1722888569344,-2000.0,0.00035568,2]
[334280630,1722888569364,-151.0,0.00036658,120]
[334280631,1722888569384,-2124.51614001,0.0003673,4]
[334280632,1722888569404,-233.984872,0.00036758,120]
[334280633,1722888569424,-648.72314502,0.00036799,2]
[334280634,1722888569444,-150.5,0.00037053,120]
[334280635,1722888569465,-162.0,0.00037053,120]
[334280636,1722888569486,-162.0,0.00037063,120]
[334280637,1722888569507,-150.5,0.00037063,120]
[334280638,1722888569528,-151.0,0.00037068,120]
[334280639,1722888569549,-162.0,0.00037073,120]
[334280640,1722888569570,-150.5,0.00037073,120]
[334280641,1722888569590,-204.41,0.00037073,120]
[334280642,1722888569610,-9641.76,0.0003724,3]
[334280643,1722888569631,-22473.1436558,0.0003725,4]
[334280644,1722888569651,-5932.14333108,0.0003726,31]
[334280645,1722888570636,251.45786387,0.0003673,4]
[334280659,1722888631992,-32.41453313,0.000376,8]
[334280713,1722888637997,-117.69769987,0.000376,8]
[334280714,1722888638008,-165.80280706,0.000377,120]
[334280715,1722888638028,-1306.9102115,0.000377,120]
[334280716,1722888638038,-206.8774882,0.00037822,2]
[334280717,1722888638048,-157.18,0.000383,31]
[334280718,1722888638058,-157.18,0.000383,31]
[334280719,1722888638070,-3868.0,0.00039,120]
[334280720,1722888638080,-1000.0,0.00039,39]
[334280721,1722888638090,-1073.26384759,0.0003979,2]
[334280722,1722888638099,-294.2310959,0.00039836,2]
[334280723,1722888638110,-159.11988492,0.00039889,31]
[334280724,1722888638120,-348.64280989,0.00039889,31]
[334280725,1722888638130,-8034.8,0.0003989,3]
[334280726,1722888638140,-44946.2873117,0.0003989,5]
[334280727,1722888638149,-880.07052078,0.0003989,2]
[334280728,1722888638160,-2000.0,0.0003989,2]
[334280729,1722888638169,-603.57452996,0.00039899,31]
[334280730,1722888638182,-88888.0,0.000399,5]
[334280732,1722888638191,-134838.861935,0.0003999,5]
[334280734,1722888638202,-291461.07598542,0.0004,2]
[334280735,1722888638212,-1000.0,0.0004,120]
[334280737,1722888638221,-1000.0,0.0004,120]
[334280738,1722888638231,-956.0,0.0004,120]
[334280739,1722888638242,-3868.0,0.0004,120]
[334280740,1722888638252,-3868.0,0.0004,120]
[334280741,1722888638262,-200.0,0.0004,2]
[334280742,1722888638272,-153.0,0.0004,2]
[334280743,1722888638281,-153.0,0.0004,2]
[334280744,1722888638291,-153.0,0.0004,2]
[334280745,1722888638301,-160.91971331,0.000401,120]
[334280746,1722888638311,-880.07052076,0.00040166,2]
[334280747,1722888638321,-880.07052076,0.00040443,2]
[334280748,1722888638330,-500.0,0.00040547,30]
[334280749,1722888638340,-151.0,0.00040603,120]
[334280750,1722888638349,-207.0130742,0.00040658,2]
[334280751,1722888638359,-3392.70771045,0.0004066,2]
[334280752,1722888638368,-500.0,0.00040684,32]
[334280753,1722888638378,-880.07052076,0.00040719,2]
[334280754,1722888638387,-500.0,0.00040821,34]
[334280755,1722888638397,-2000.0,0.00040821,120]
[334280756,1722888638407,-500.0,0.00040958,36]
[334280757,1722888638416,-3392.70771046,0.0004097,2]
[334280758,1722888638429,-22473.1436558,0.0004099,5]
[334280759,1722888638438,-880.07052076,0.00040995,2]
[334280760,1722888638448,-3868.0,0.00041,120]
[334280761,1722888638457,-3868.0,0.00041,120]
[334280762,1722888638467,-3989.26,0.00041,120]
[334280763,1722888638476,-1000.0,0.00041,41]
[334280764,1722888638486,-600.0,0.00041029,2]
[334280765,1722888638495,-22473.1436558,0.00041085,5]
[334280766,1722888638505,-236.56991232,0.00041094,30]
[334280767,1722888638514,-500.0,0.00041095,31]
[334280768,1722888638523,-500.0,0.00041095,31]
[334280769,1722888638533,-500.0,0.00041095,31]
[334280770,1722888638542,-500.0,0.00041095,31]
[334280771,1722888638551,-573.78,0.00041095,31]
[334280772,1722888638560,-500.0,0.00041095,31]
[334280773,1722888638569,-500.0,0.00041095,31]
[334280774,1722888638579,-500.0,0.00041095,31]
[334280775,1722888638588,-500.0,0.00041095,31]
[334280776,1722888638598,-500.0,0.00041095,31]
[334280777,1722888638608,-500.0,0.00041095,31]
[334280778,1722888638618,-500.0,0.00041095,31]
[334280779,1722888638825,-500.0,0.00041095,31]
[334280780,1722888638836,-500.0,0.00041095,31]
[334280781,1722888638845,-210.78377039,0.00041095,31]
[334280782,1722888638855,-500.0,0.00041095,31]
[334280783,1722888638864,-500.0,0.00041095,31]
[334280784,1722888638873,-500.0,0.00041095,31]
[334280785,1722888638883,-500.0,0.00041095,31]
[334280786,1722888638892,-151.0,0.00041095,14]
[334280787,1722888638901,-500.0,0.00041095,31]
[334280788,1722888638911,-151.0,0.00041095,14]